[Event "Skalica Rapid 2020"]
[Site "Skalica"]
[Date "2020.08.29"]
[Round "3.14"]
[White "Stos Radek"]
[Black "Kubat, Pavel"]
[Result "0-1"]
[ECO "C41"]
[WhiteElo "1790"]
[BlackElo "2066"]
[Annotator "ChessBase"]
[PlyCount "72"]
[EventDate "2020.08.29"]
[EventType "swiss"]
[EventCountry "SVK"]
[SourceTitle "playchess.com"]
[Source "ChessBase"]
[SourceQuality "1"]
[TimeControl "600+5"]

1. e4 {[%emt 0:00:01]} d6 {[%emt 0:00:30]} 2. Nf3 {[%emt 0:00:04]} Nf6 {[%emt 0:00:03]} 3. Nc3 {[%emt 0:00:02]} Nbd7 {[%emt 0:00:02]} 4. d4 {[%emt 0:00:01]} e5 {[%emt 0:00:01]} 5. dxe5 {[%emt 0:00:04]} dxe5 {[%emt 0:00:01]} 6. Bg5 {[%emt 0:00:04]} Be7 {[%emt 0:00:02]} 7. Bc4 {[%emt 0:00:03]} O-O {[%emt 0:00:02]} 8. O-O {[%emt 0:00:04]} c6 {[%emt 0:00:01]} 9. h3 {[%emt 0:00:02]} b5 {[%emt 0:00:02]} 10. Bb3 {[%emt 0:00:02]} b4 {[%emt 0:00:04]} 11. Ne2 {[%emt 0:00:26]} Nxe4 {[%emt 0:00:04]} 12. Bxe7 {[%emt 0:00:03]} Qxe7 {[%emt 0:00:02]} 13. Ng3 {[%emt 0:00:33]} Nxg3 {[%emt 0:01:27]} 14. fxg3 {[%emt 0:00:03]} Nc5 {[%emt 0:00:08]} 15. Bc4 {[%emt 0:00:58]} Ne4 {[%emt 0:02:17]} 16. Kh2 {[%emt 0:00:21]} Nd6 {[%emt 0:01:33]} 17. Bb3 {[%emt 0:00:21]} Be6 {[%emt 0:00:30]} 18. Bxe6 {[%emt 0:01:46]} Qxe6 {[%emt 0:00:02]} 19. Qe2 {[%emt 0:00:02]} f6 {[%emt 0:00:14]} 20. b3 {[%emt 0:00:07]} Nb5 {[%emt 0:00:20]} 21. Rad1 {[%emt 0:00:03]} Nc3 {[%emt 0:00:01]} 22. Qe3 {[%emt 0:00:08]} Nxd1 {[%emt 0:00:07]} 23. Rxd1 {[%emt 0:00:02]} Qe7 {[%emt 0:01:31]} 24. Nd4 {[%emt 0:00:04]} Qc5 {[%emt 0:00:12]} 25. Nf5 {[%emt 0:00:18]} Qxe3 {[%emt 0:00:02]} 26. Nxe3 {[%emt 0:00:01]} Rfd8 {[%emt 0:00:04]} 27. Rc1 {[%emt 0:00:09]} Rd2 {[%emt 0:00:06]} 28. c3 {[%emt 0:00:05]} Rd3 {[%emt 0:00:17]} 29. Nf5 {[%emt 0:01:06]} bxc3 {[%emt 0:00:04]} 30. Ne7+ {[%emt 0:00:05]} Kf7 {[%emt 0:00:02]} 31. Nxc6 {[%emt 0:00:02]} a5 {[%emt 0:00:37]} 32. b4 {[%emt 0:00:13]} axb4 {[%emt 0:00:19]} 33. Nxb4 {[%emt 0:00:02]} Re3 {[%emt 0:00:23]} 34. Rc2 {[%emt 0:00:07]} Ra3 {[%emt 0:00:12]} 35. Nd5 {[%emt 0:00:08]} Rd3 {[%emt 0:00:04]} 36. g4 {[%emt 0:00:19]} Rxd5 {[%emt 0:00:02]} 0-1

[Event "Skalica Rapid 2020"]
[Site "Skalica"]
[Date "2020.08.29"]
[Round "3.15"]
[White "Sarmir Milos"]
[Black "Nemsak Denis"]
[Result "1-0"]
[ECO "B04"]
[WhiteElo "2059"]
[BlackElo "1869"]
[Annotator "ChessBase"]
[PlyCount "33"]
[EventDate "2020.08.29"]
[EventType "swiss"]
[EventCountry "SVK"]
[SourceTitle "playchess.com"]
[Source "ChessBase"]
[SourceQuality "1"]
[TimeControl "600+5"]

1. e4 {[%emt 0:00:00]} d5 {[%emt 0:00:00]} 2. exd5 {[%emt 0:00:00]} Nf6 {[%emt 0:00:00]} 3. Nf3 {[%emt 0:00:02]} Nxd5 {[%emt 0:00:00]} 4. d4 {[%emt 0:00:02]} g6 {[%emt 0:00:00]} 5. c3 {[%emt 0:00:01]} Bg7 {[%emt 0:00:01]} 6. Be2 {[%emt 0:00:03]} O-O {[%emt 0:00:02]} 7. O-O {[%emt 0:00:02]} Nd7 {[%emt 0:00:06]} 8. c4 {[%emt 0:00:18]} N5b6 {[%emt 0:00:01]} 9. Nc3 {[%emt 0:00:03]} c5 {[%emt 0:00:02]} 10. d5 {[%emt 0:00:05]} Ne5 {[%emt 0:00:03]} 11. Nxe5 {[%emt 0:00:14]} Bxe5 {[%emt 0:00:01]} 12. Bh6 {[%emt 0:00:06]} Re8 {[%emt 0:00:01]} 13. Qc2 {[%emt 0:00:03]} e6 {[%emt 0:00:02]} 14. Rad1 {[%emt 0:00:06]} Qh4 {[%emt 0:00:07]} 15. f4 {[%emt 0:00:09]} Bd4+ {[%emt 0:00:01]} 16. Rxd4 {[%emt 0:00:05]} cxd4 {[%emt 0:00:02]} 17. Bg5 {[%emt 0:00:03]} 1-0

[Event "Skalica Rapid 2020"]
[Site "Skalica"]
[Date "2020.08.29"]
[Round "3.16"]
[White "Jablonicky, Frantisek"]
[Black "Sevcikova Lucia"]
[Result "1-0"]
[ECO "A03"]
[WhiteElo "2038"]
[BlackElo "1801"]
[Annotator "ChessBase"]
[PlyCount "37"]
[EventDate "2020.08.29"]
[EventType "swiss"]
[EventCountry "SVK"]
[SourceTitle "playchess.com"]
[Source "ChessBase"]
[SourceQuality "1"]
[TimeControl "600+5"]

1. g3 {[%emt 0:00:00]} d5 {[%emt 0:00:00]} 2. f4 {[%emt 0:00:00]} c5 {[%emt 0:00:02]} 3. Nf3 {[%emt 0:00:03]} Nc6 {[%emt 0:00:01]} 4. Bg2 {[%emt 0:00:02]} Bf5 {[%emt 0:00:11]} 5. O-O {[%emt 0:00:03]} Nf6 {[%emt 0:00:03]} 6. d3 {[%emt 0:00:05]} e6 {[%emt 0:00:03]} 7. Qe1 {[%emt 0:00:00]} Be7 {[%emt 0:00:21]} 8. c3 {[%emt 0:00:06]} Qb6 {[%emt 0:00:17]} 9. Kh1 {[%emt 0:00:39]} h5 {[%emt 0:01:27]} 10. Nbd2 {[%emt 0:00:04]} Bg6 {[%emt 0:00:35]} 11. h3 {[%emt 0:00:13]} O-O-O {[%emt 0:00:45]} 12. e4 {[%emt 0:00:05]} Rhe8 {[%emt 0:00:05]} 13. Ne5 {[%emt 0:00:02]} dxe4 {[%emt 0:00:33]} 14. dxe4 {[%emt 0:00:06]} Bd6 {[%emt 0:00:11]} 15. Nxg6 {[%emt 0:00:01]} fxg6 {[%emt 0:00:05]} 16. e5 {[%emt 0:00:02]} Be7 {[%emt 0:00:11]} 17. exf6 {[%emt 0:00:01]} Bxf6 {[%emt 0:00:01]} 18. Qe4 {[%emt 0:00:16]} e5 {[%emt 0:00:24]} 19. Qxg6 {[%emt 0:00:30]} 1-0

[Event "Skalica Rapid 2020"]
[Site "Skalica"]
[Date "2020.08.29"]
[Round "3.17"]
[White "Kaplan, Milan"]
[Black "O`gorman Tom"]
[Result "0-1"]
[ECO "E90"]
[WhiteElo "1762"]
[BlackElo "2027"]
[Annotator "ChessBase"]
[PlyCount "62"]
[EventDate "2020.08.29"]
[EventType "swiss"]
[EventCountry "SVK"]
[SourceTitle "playchess.com"]
[Source "ChessBase"]
[SourceQuality "1"]
[TimeControl "600+5"]

1. e4 {[%emt 0:01:42]} c5 {[%emt 0:00:00]} 2. Nf3 {[%emt 0:00:07]} d6 {[%emt 0:00:00]} 3. d4 {[%emt 0:00:01]} cxd4 {[%emt 0:00:00]} 4. Nxd4 {[%emt 0:00:01]} Nf6 {[%emt 0:00:00]} 5. Bd3 {[%emt 0:00:07]} Nc6 {[%emt 0:00:00]} 6. Nxc6 {[%emt 0:00:41]} bxc6 {[%emt 0:00:00]} 7. c4 {[%emt 0:00:02]} g6 {[%emt 0:00:07]} 8. O-O {[%emt 0:00:04]} Bg7 {[%emt 0:00:05]} 9. Nc3 {[%emt 0:00:05]} O-O {[%emt 0:00:00]} 10. h3 {[%emt 0:00:21]} Nd7 {[%emt 0:00:02]} 11. Be3 {[%emt 0:00:37]} Rb8 {[%emt 0:00:18]} 12. Qd2 {[%emt 0:00:20]} c5 {[%emt 0:00:05]} 13. Rab1 {[%emt 0:00:14]} Ne5 {[%emt 0:00:08]} 14. Be2 {[%emt 0:00:20]} Nc6 {[%emt 0:00:11]} 15. f4 {[%emt 0:01:08]} Nd4 {[%emt 0:00:07]} 16. Bg4 {[%emt 0:01:16]} Be6 {[%emt 0:00:34]} 17. Nd5 {[%emt 0:00:38]} Bxd5 {[%emt 0:00:13]} 18. cxd5 {[%emt 0:00:28]} Qb6 {[%emt 0:00:05]} 19. b3 {[%emt 0:00:18]} Qb4 {[%emt 0:00:09]} 20. Qxb4 {[%emt 0:00:25]} Rxb4 {[%emt 0:00:02]} 21. f5 {[%emt 0:00:30]} a5 {[%emt 0:00:08]} 22. fxg6 {[%emt 0:00:08]} hxg6 {[%emt 0:00:02]} 23. Bf3 {[%emt 0:00:02]} Ra8 {[%emt 0:00:11]} 24. Bd2 {[%emt 0:00:20]} Rb7 {[%emt 0:00:10]} 25. Bc3 {[%emt 0:01:02]} a4 {[%emt 0:00:36]} 26. bxa4 {[%emt 0:00:16]} Rxb1 {[%emt 0:00:01]} 27. Rxb1 {[%emt 0:00:05]} Nxf3+ {[%emt 0:00:02]} 28. gxf3 {[%emt 0:00:06]} Bxc3 {[%emt 0:00:02]} 29. Rb3 {[%emt 0:00:10]} Bd4+ {[%emt 0:00:01]} 30. Kg2 {[%emt 0:00:02]} Rxa4 {[%emt 0:00:01]} 31. a3 {[%emt 0:00:07]} c4 {[%emt 0:00:04]} 0-1

[Event "Skalica Rapid 2020"]
[Site "Skalica"]
[Date "2020.08.29"]
[Round "3.18"]
[White "Havelka, Ondrej"]
[Black "Gzib, David"]
[Result "1/2-1/2"]
[ECO "D85"]
[WhiteElo "1997"]
[BlackElo "1770"]
[Annotator "ChessBase"]
[PlyCount "121"]
[EventDate "2020.08.29"]
[EventType "swiss"]
[EventCountry "SVK"]
[SourceTitle "playchess.com"]
[Source "ChessBase"]
[SourceQuality "1"]
[TimeControl "600+5"]

1. d4 {[%emt 0:00:00]} Nf6 {[%emt 0:00:00]} 2. c4 {[%emt 0:00:00]} g6 {[%emt 0:00:00]} 3. Nc3 {[%emt 0:00:00]} d5 {[%emt 0:00:00]} 4. cxd5 {[%emt 0:00:01]} Nxd5 {[%emt 0:00:03]} 5. e4 {[%emt 0:00:01]} Nxc3 {[%emt 0:00:02]} 6. bxc3 {[%emt 0:00:03]} Bg7 {[%emt 0:00:01]} 7. Qa4+ {[%emt 0:00:03]} Bd7 {[%emt 0:00:16]} 8. Qa3 {[%emt 0:00:03]} O-O {[%emt 0:00:16]} 9. Nf3 {[%emt 0:00:04]} c5 {[%emt 0:00:53]} 10. Qxc5 {[%emt 0:00:12]} Nc6 {[%emt 0:00:03]} 11. Be2 {[%emt 0:00:41]} Rc8 {[%emt 0:00:02]} 12. Qa3 {[%emt 0:00:33]} Qa5 {[%emt 0:01:09]} 13. O-O {[%emt 0:00:24]} e6 {[%emt 0:01:04]} 14. Rb1 {[%emt 0:00:35]} b6 {[%emt 0:00:35]} 15. Qxa5 {[%emt 0:02:24]} Nxa5 {[%emt 0:00:02]} 16. Ba3 {[%emt 0:00:01]} Rfd8 {[%emt 0:00:02]} 17. Be7 {[%emt 0:00:04]} Re8 {[%emt 0:00:02]} 18. Bb4 {[%emt 0:00:01]} Nc4 {[%emt 0:00:32]} 19. Bxc4 {[%emt 0:00:23]} Rxc4 {[%emt 0:00:01]} 20. Nd2 {[%emt 0:00:01]} Rc7 {[%emt 0:00:49]} 21. Rbc1 {[%emt 0:00:52]} Rec8 {[%emt 0:00:15]} 22. Nb1 {[%emt 0:00:47]} Ba4 {[%emt 0:03:08]} 23. f4 {[%emt 0:00:17]} Bxd4+ {[%emt 0:00:05]} 24. Kh1 {[%emt 0:00:21]} a5 {[%emt 0:00:05]} 25. Bd6 {[%emt 0:00:15]} Rc6 {[%emt 0:00:01]} 26. e5 {[%emt 0:00:26]} Bxc3 {[%emt 0:00:11]} 27. Nxc3 {[%emt 0:00:09]} Rxc3 {[%emt 0:00:02]} 28. Rb1 {[%emt 0:00:02]} b5 {[%emt 0:00:21]} 29. h3 {[%emt 0:00:03]} b4 {[%emt 0:00:02]} 30. Rf2 {[%emt 0:00:14]} Rc2 {[%emt 0:00:06]} 31. Rb2 {[%emt 0:00:01]} Rxb2 {[%emt 0:01:22]} 32. Rxb2 {[%emt 0:00:02]} Rc2 {[%emt 0:00:09]} 33. Rxc2 {[%emt 0:00:16]} Bxc2 {[%emt 0:00:01]} 34. Kg1 {[%emt 0:00:01]} Bb1 {[%emt 0:00:16]} 35. Bc7 {[%emt 0:00:18]} a4 {[%emt 0:00:05]} 36. Bd6 {[%emt 0:00:07]} b3 {[%emt 0:00:02]} 37. axb3 {[%emt 0:00:02]} axb3 {[%emt 0:00:01]} 38. Ba3 {[%emt 0:00:00]} Be4 {[%emt 0:00:03]} 39. Kf2 {[%emt 0:00:02]} Kg7 {[%emt 0:00:06]} 40. g4 {[%emt 0:00:24]} g5 {[%emt 0:00:08]} 41. fxg5 {[%emt 0:00:04]} Kg6 {[%emt 0:00:04]} 42. h4 {[%emt 0:00:01]} Bc2 {[%emt 0:00:06]} 43. Kg3 {[%emt 0:00:02]} Bd1 {[%emt 0:00:04]} 44. Kf4 {[%emt 0:00:03]} h5 {[%emt 0:00:12]} 45. gxh6 {[%emt 0:00:12]} Kxh6 {[%emt 0:00:02]} 46. Bc1 {[%emt 0:00:10]} Kg6 {[%emt 0:00:02]} 47. h5+ {[%emt 0:00:27]} Kh7 {[%emt 0:00:03]} 48. Kg5 {[%emt 0:00:01]} Kg7 {[%emt 0:00:10]} 49. h6+ {[%emt 0:00:26]} Kh7 {[%emt 0:00:01]} 50. Kh4 {[%emt 0:01:23]} Kg6 {[%emt 0:00:03]} 51. g5 {[%emt 0:00:01]} Bc2 {[%emt 0:00:03]} 52. Kg4 {[%emt 0:00:03]} Bf5+ {[%emt 0:00:02]} 53. Kf4 {[%emt 0:00:01]} Kh7 {[%emt 0:00:02]} 54. Ke3 {[%emt 0:00:04]} Bg6 {[%emt 0:00:03]} 55. Kd4 {[%emt 0:00:01]} Bh5 {[%emt 0:00:03]} 56. Kc3 {[%emt 0:00:14]} Bd1 {[%emt 0:00:02]} 57. Kb4 {[%emt 0:00:01]} Bc2 {[%emt 0:00:03]} 58. Kc5 {[%emt 0:00:04]} Bg6 {[%emt 0:00:02]} 59. Kd6 {[%emt 0:00:01]} Bh5 {[%emt 0:00:02]} 60. Ke7 {[%emt 0:00:02]} Bg6 {[%emt 0:00:01]} 61. Kf8 {[%emt 0:00:28]} 1/2-1/2

[Event "Skalica Rapid 2020"]
[Site "Skalica"]
[Date "2020.08.29"]
[Round "4.1"]
[White "Petran, Peter"]
[Black "Basso, Pier Luigi"]
[Result "0-1"]
[ECO "A07"]
[WhiteElo "2219"]
[BlackElo "2443"]
[Annotator "ChessBase"]
[PlyCount "80"]
[EventDate "2020.08.29"]
[EventType "swiss"]
[EventCountry "SVK"]
[SourceTitle "playchess.com"]
[Source "ChessBase"]
[SourceQuality "1"]
[TimeControl "600+5"]

1. g3 {[%emt 0:00:00]} d5 {[%emt 0:00:00]} 2. Nf3 {[%emt 0:00:04]} c6 {[%emt 0:00:00]} 3. Bg2 {[%emt 0:00:00]} Bg4 {[%emt 0:00:00]} 4. d3 {[%emt 0:00:00]} e6 {[%emt 0:00:00]} 5. Nbd2 {[%emt 0:00:04]} Bd6 {[%emt 0:00:05]} 6. b3 {[%emt 0:00:00]} Ne7 {[%emt 0:00:02]} 7. Bb2 {[%emt 0:00:02]} O-O {[%emt 0:00:02]} 8. O-O {[%emt 0:00:00]} Nd7 {[%emt 0:00:02]} 9. e4 {[%emt 0:00:05]} Ne5 {[%emt 0:00:19]} 10. Qe1 {[%emt 0:00:09]} Nxf3+ {[%emt 0:00:03]} 11. Nxf3 {[%emt 0:00:03]} a5 {[%emt 0:00:14]} 12. a3 {[%emt 0:00:04]} Qd7 {[%emt 0:01:06]} 13. Ne5 {[%emt 0:01:02]} Bxe5 {[%emt 0:00:02]} 14. Bxe5 {[%emt 0:00:05]} f6 {[%emt 0:00:03]} 15. Bb2 {[%emt 0:00:00]} e5 {[%emt 0:00:05]} 16. f4 {[%emt 0:00:12]} exf4 {[%emt 0:00:53]} 17. Rxf4 {[%emt 0:00:14]} Bh3 {[%emt 0:00:30]} 18. Bh1 {[%emt 0:00:40]} Ng6 {[%emt 0:00:13]} 19. Rf2 {[%emt 0:00:03]} dxe4 {[%emt 0:00:06]} 20. Bxe4 {[%emt 0:00:06]} f5 {[%emt 0:00:33]} 21. Bg2 {[%emt 0:00:34]} Bxg2 {[%emt 0:00:05]} 22. Rxg2 {[%emt 0:00:18]} a4 {[%emt 0:00:31]} 23. b4 {[%emt 0:00:06]} Rae8 {[%emt 0:00:04]} 24. Re2 {[%emt 0:00:07]} f4 {[%emt 0:00:05]} 25. Re4 {[%emt 0:01:02]} f3 {[%emt 0:00:38]} 26. Qf2 {[%emt 0:00:06]} Rxe4 {[%emt 0:00:07]} 27. dxe4 {[%emt 0:00:01]} Qg4 {[%emt 0:00:18]} 28. Re1 {[%emt 0:00:20]} Nf4 {[%emt 0:00:03]} 29. Kh1 {[%emt 0:00:26]} Nh3 {[%emt 0:00:41]} 30. Qe3 {[%emt 0:00:05]} Rd8 {[%emt 0:00:30]} 31. Rf1 {[%emt 0:00:27]} Rf8 {[%emt 0:00:08]} 32. e5 {[%emt 0:00:10]} Ng5 {[%emt 0:00:12]} 33. e6 {[%emt 0:01:31]} Nxe6 {[%emt 0:00:05]} 34. Kg1 {[%emt 0:00:58]} h5 {[%emt 0:00:08]} 35. Qe5 {[%emt 0:00:48]} h4 {[%emt 0:00:34]} 36. Kf2 {[%emt 0:00:11]} Qg6 {[%emt 0:00:13]} 37. Rc1 {[%emt 0:01:19]} Ng5 {[%emt 0:00:08]} 38. Kf1 {[%emt 0:01:04]} Ne4 {[%emt 0:00:20]} 39. Re1 {[%emt 0:00:21]} Re8 {[%emt 0:00:36]} 40. Qf4 {[%emt 0:00:23]} hxg3 {[%emt 0:00:04]} 0-1

[Event "Skalica Rapid 2020"]
[Site "Skalica"]
[Date "2020.08.29"]
[Round "4.1"]
[White "Bombek, Peter"]
[Black "Tupy, Bystrik"]
[Result "1-0"]
[ECO "D10"]
[WhiteElo "2090"]
[BlackElo "1702"]
[Annotator "ChessBase"]
[PlyCount "95"]
[EventDate "2020.08.29"]
[EventType "swiss"]
[EventCountry "SVK"]
[SourceTitle "playchess.com"]
[Source "ChessBase"]
[SourceQuality "1"]
[TimeControl "600+5"]

1. d4 {[%emt 0:00:00]} d5 {[%emt 0:00:00]} 2. c4 {[%emt 0:00:01]} c6 {[%emt 0:00:00]} 3. Nc3 {[%emt 0:00:04]} Nf6 {[%emt 0:00:00]} 4. Bg5 {[%emt 0:00:17]} Bf5 {[%emt 0:00:02]} 5. Bxf6 {[%emt 0:00:09]} exf6 {[%emt 0:00:02]} 6. cxd5 {[%emt 0:00:06]} cxd5 {[%emt 0:00:02]} 7. Qb3 {[%emt 0:00:03]} Qd7 {[%emt 0:00:40]} 8. Qxd5 {[%emt 0:00:15]} Be6 {[%emt 0:00:12]} 9. Qxd7+ {[%emt 0:00:05]} Nxd7 {[%emt 0:00:04]} 10. e3 {[%emt 0:00:10]} Bb4 {[%emt 0:00:02]} 11. Bb5 {[%emt 0:00:10]} a6 {[%emt 0:00:15]} 12. Ba4 {[%emt 0:00:06]} b5 {[%emt 0:00:07]} 13. Bb3 {[%emt 0:00:06]} O-O {[%emt 0:00:07]} 14. Nge2 {[%emt 0:00:08]} Rac8 {[%emt 0:00:33]} 15. O-O {[%emt 0:00:04]} Bc4 {[%emt 0:00:24]} 16. Rfc1 {[%emt 0:00:32]} f5 {[%emt 0:00:10]} 17. Bxc4 {[%emt 0:00:15]} Rxc4 {[%emt 0:01:35]} 18. Nd5 {[%emt 0:00:07]} Ba5 {[%emt 0:01:34]} 19. Ne7+ {[%emt 0:00:15]} Kh8 {[%emt 0:00:18]} 20. Nxf5 {[%emt 0:00:04]} Rfc8 {[%emt 0:00:08]} 21. Nd6 {[%emt 0:00:05]} Rxc1+ {[%emt 0:00:25]} 22. Rxc1 {[%emt 0:00:02]} Rxc1+ {[%emt 0:00:14]} 23. Nxc1 {[%emt 0:00:02]} f6 {[%emt 0:00:17]} 24. Nb3 {[%emt 0:00:10]} Bc7 {[%emt 0:00:16]} 25. Nc5 {[%emt 0:00:12]} Bxd6 {[%emt 0:00:26]} 26. Nxd7 {[%emt 0:00:02]} Kg8 {[%emt 0:00:20]} 27. a3 {[%emt 0:00:57]} Kf7 {[%emt 0:00:13]} 28. b4 {[%emt 0:00:04]} Ke6 {[%emt 0:01:14]} 29. Nc5+ {[%emt 0:00:02]} Bxc5 {[%emt 0:00:05]} 30. dxc5 {[%emt 0:00:02]} Kd5 {[%emt 0:00:01]} 31. Kf1 {[%emt 0:00:05]} a5 {[%emt 0:00:01]} 32. Ke2 {[%emt 0:00:09]} f5 {[%emt 0:00:53]} 33. Kd3 {[%emt 0:00:08]} g5 {[%emt 0:00:02]} 34. f3 {[%emt 0:00:06]} h5 {[%emt 0:00:02]} 35. e4+ {[%emt 0:00:01]} fxe4+ {[%emt 0:00:01]} 36. fxe4+ {[%emt 0:00:01]} Kc6 {[%emt 0:00:10]} 37. Kd4 {[%emt 0:00:05]} axb4 {[%emt 0:00:07]} 38. axb4 {[%emt 0:00:02]} g4 {[%emt 0:00:05]} 39. g3 {[%emt 0:00:05]} Kd7 {[%emt 0:00:03]} 40. Ke5 {[%emt 0:00:05]} Ke7 {[%emt 0:00:02]} 41. Kd5 {[%emt 0:00:03]} Kd7 {[%emt 0:00:02]} 42. e5 {[%emt 0:00:02]} Ke7 {[%emt 0:00:01]} 43. c6 {[%emt 0:00:04]} Kd8 {[%emt 0:00:01]} 44. Kd6 {[%emt 0:00:02]} Kc8 {[%emt 0:00:01]} 45. e6 {[%emt 0:00:01]} Kd8 {[%emt 0:00:01]} 46. e7+ {[%emt 0:00:02]} Ke8 {[%emt 0:00:05]} 47. Ke6 {[%emt 0:00:02]} h4 {[%emt 0:00:09]} 48. c7 {[%emt 0:00:02]} 1-0

[Event "Skalica Rapid 2020"]
[Site "Skalica"]
[Date "2020.08.29"]
[Round "4.2"]
[White "Pechac, Jergus"]
[Black "Yankelevich, Lev"]
[Result "0-1"]
[ECO "E99"]
[WhiteElo "2430"]
[BlackElo "2388"]
[Annotator "ChessBase"]
[PlyCount "102"]
[EventDate "2020.08.29"]
[EventType "swiss"]
[EventCountry "SVK"]
[SourceTitle "playchess.com"]
[Source "ChessBase"]
[SourceQuality "1"]
[TimeControl "600+5"]

1. d4 {[%emt 0:00:00]} Nf6 {[%emt 0:00:06]} 2. c4 {[%emt 0:00:01]} g6 {[%emt 0:00:01]} 3. Nc3 {[%emt 0:00:03]} Bg7 {[%emt 0:00:02]} 4. e4 {[%emt 0:00:01]} d6 {[%emt 0:00:03]} 5. Be2 {[%emt 0:00:06]} O-O {[%emt 0:00:04]} 6. Nf3 {[%emt 0:00:00]} e5 {[%emt 0:00:02]} 7. O-O {[%emt 0:00:01]} Nc6 {[%emt 0:00:01]} 8. d5 {[%emt 0:00:04]} Ne7 {[%emt 0:00:01]} 9. Ne1 {[%emt 0:00:05]} Nd7 {[%emt 0:00:08]} 10. Be3 {[%emt 0:00:00]} f5 {[%emt 0:00:13]} 11. f3 {[%emt 0:00:00]} f4 {[%emt 0:00:07]} 12. Bf2 {[%emt 0:00:01]} g5 {[%emt 0:00:02]} 13. Rc1 {[%emt 0:00:05]} Ng6 {[%emt 0:00:27]} 14. c5 {[%emt 0:00:00]} Nxc5 {[%emt 0:00:13]} 15. b4 {[%emt 0:00:00]} Na6 {[%emt 0:00:27]} 16. Nd3 {[%emt 0:00:02]} Rf7 {[%emt 0:00:22]} 17. Nb5 {[%emt 0:00:09]} b6 {[%emt 0:00:24]} 18. Be1 {[%emt 0:00:15]} Bf6 {[%emt 0:00:32]} 19. Nf2 {[%emt 0:00:23]} Qf8 {[%emt 0:00:12]} 20. Qa4 {[%emt 0:00:30]} Qe8 {[%emt 0:01:22]} 21. Bd2 {[%emt 0:01:22]} Bd8 {[%emt 0:00:11]} 22. g4 {[%emt 0:01:07]} Nb8 {[%emt 0:01:32]} 23. Qb3 {[%emt 0:00:16]} a6 {[%emt 0:00:04]} 24. Nxd6 {[%emt 0:00:06]} cxd6 {[%emt 0:00:21]} 25. Rxc8 {[%emt 0:00:02]} Rc7 {[%emt 0:00:04]} 26. Rxc7 {[%emt 0:00:20]} Bxc7 {[%emt 0:00:02]} 27. Rc1 {[%emt 0:00:07]} Bd8 {[%emt 0:00:15]} 28. a4 {[%emt 0:00:33]} Ra7 {[%emt 0:00:06]} 29. b5 {[%emt 0:00:29]} a5 {[%emt 0:00:40]} 30. Rc8 {[%emt 0:00:23]} Nd7 {[%emt 0:00:16]} 31. Nd3 {[%emt 0:00:39]} Ne7 {[%emt 0:00:17]} 32. Rc6 {[%emt 0:00:10]} Bc7 {[%emt 0:00:04]} 33. Bc1 {[%emt 0:01:03]} Kg7 {[%emt 0:00:18]} 34. Rc4 {[%emt 0:01:41]} h5 {[%emt 0:00:06]} 35. Ba3 {[%emt 0:01:05]} hxg4 {[%emt 0:00:19]} 36. Rxc7 {[%emt 0:00:23]} Rxc7 {[%emt 0:00:04]} 37. Bxd6 {[%emt 0:00:02]} gxf3 {[%emt 0:00:27]} 38. Bxf3 {[%emt 0:00:11]} g4 {[%emt 0:00:06]} 39. Bxc7 {[%emt 0:00:18]} gxf3 {[%emt 0:00:34]} 40. Nxe5 {[%emt 0:00:02]} Ng6 {[%emt 0:00:44]} 41. Nxf3 {[%emt 0:00:05]} Qxe4 {[%emt 0:00:04]} 42. Qc3+ {[%emt 0:00:08]} Kh6 {[%emt 0:00:04]} 43. Bd8 {[%emt 0:00:41]} Nc5 {[%emt 0:00:11]} 44. Ng5 {[%emt 0:00:13]} Qb1+ {[%emt 0:00:37]} 45. Kg2 {[%emt 0:00:01]} Nd3 {[%emt 0:00:06]} 46. Nf3 {[%emt 0:00:14]} Qa2+ {[%emt 0:00:08]} 47. Qd2 {[%emt 0:00:11]} Qxd5 {[%emt 0:00:02]} 48. Bg5+ {[%emt 0:00:07]} Kh7 {[%emt 0:00:07]} 49. h4 {[%emt 0:00:13]} Qe4 {[%emt 0:00:47]} 50. Qd1 {[%emt 0:00:06]} Nge5 {[%emt 0:00:05]} 51. Qf1 {[%emt 0:00:05]} Nxf3 {[%emt 0:00:05]} 0-1

[Event "Skalica Rapid 2020"]
[Site "Skalica"]
[Date "2020.08.29"]
[Round "4.2"]
[White "Beres, Dominik"]
[Black "Pekar, Matus"]
[Result "0-1"]
[ECO "B00"]
[WhiteElo "1988"]
[BlackElo "1575"]
[Annotator "ChessBase"]
[PlyCount "112"]
[EventDate "2020.08.29"]
[EventType "swiss"]
[EventCountry "SVK"]
[SourceTitle "playchess.com"]
[Source "ChessBase"]
[SourceQuality "1"]
[TimeControl "600+5"]

1. e4 {[%emt 0:00:00]} d6 {[%emt 0:00:00]} 2. d4 {[%emt 0:00:01]} Nf6 {[%emt 0:00:00]} 3. Bd3 {[%emt 0:00:03]} g6 {[%emt 0:00:06]} 4. Ne2 {[%emt 0:00:02]} Bg7 {[%emt 0:00:02]} 5. O-O {[%emt 0:00:03]} a6 {[%emt 0:00:02]} 6. e5 {[%emt 0:00:37]} dxe5 {[%emt 0:00:24]} 7. dxe5 {[%emt 0:00:02]} Nd5 {[%emt 0:00:36]} 8. Be4 {[%emt 0:00:22]} c6 {[%emt 0:00:56]} 9. c4 {[%emt 0:01:14]} Nb6 {[%emt 0:00:25]} 10. Qb3 {[%emt 0:00:23]} Bxe5 {[%emt 0:00:48]} 11. Bh6 {[%emt 0:00:10]} Be6 {[%emt 0:00:40]} 12. Nd2 {[%emt 0:00:21]} Qc7 {[%emt 0:00:56]} 13. f4 {[%emt 0:00:11]} Bf6 {[%emt 0:00:15]} 14. f5 {[%emt 0:00:17]} gxf5 {[%emt 0:00:36]} 15. Bxf5 {[%emt 0:00:03]} Bxf5 {[%emt 0:01:17]} 16. Rxf5 {[%emt 0:00:02]} N8d7 {[%emt 0:00:03]} 17. Ne4 {[%emt 0:00:38]} Rg8 {[%emt 0:00:31]} 18. Nxf6+ {[%emt 0:00:18]} Nxf6 {[%emt 0:00:04]} 19. Bf4 {[%emt 0:00:28]} Qd7 {[%emt 0:00:37]} 20. Rxf6 {[%emt 0:00:10]} exf6 {[%emt 0:01:03]} 21. Qxb6 {[%emt 0:00:04]} Qg4 {[%emt 0:00:02]} 22. Qf2 {[%emt 0:00:11]} Rd8 {[%emt 0:00:11]} 23. Re1 {[%emt 0:00:10]} h5 {[%emt 0:00:09]} 24. Bc7 {[%emt 0:00:43]} Rd7 {[%emt 0:00:15]} 25. Bg3 {[%emt 0:00:25]} Re7 {[%emt 0:00:07]} 26. Nf4 {[%emt 0:00:29]} Rxe1+ {[%emt 0:00:18]} 27. Qxe1+ {[%emt 0:00:02]} Kf8 {[%emt 0:00:01]} 28. Qe2 {[%emt 0:00:21]} Qf5 {[%emt 0:00:08]} 29. Nd3 {[%emt 0:00:45]} Rg4 {[%emt 0:00:14]} 30. Bd6+ {[%emt 0:00:34]} Kg8 {[%emt 0:00:14]} 31. c5 {[%emt 0:00:12]} Re4 {[%emt 0:00:05]} 32. Qf1 {[%emt 0:00:04]} Qe6 {[%emt 0:00:15]} 33. b3 {[%emt 0:00:18]} Qd5 {[%emt 0:00:06]} 34. Nf2 {[%emt 0:00:13]} Qd4 {[%emt 0:00:14]} 35. Kh1 {[%emt 0:00:19]} Re3 {[%emt 0:00:02]} 36. h3 {[%emt 0:00:05]} Qd5 {[%emt 0:00:03]} 37. Nd1 {[%emt 0:00:11]} Re6 {[%emt 0:00:18]} 38. Nc3 {[%emt 0:00:10]} Qd2 {[%emt 0:00:02]} 39. Qf3 {[%emt 0:00:23]} Re3 {[%emt 0:00:15]} 40. Qxf6 {[%emt 0:00:02]} Qxc3 {[%emt 0:00:09]} 41. Qg5+ {[%emt 0:00:07]} Kh7 {[%emt 0:00:05]} 42. Qxh5+ {[%emt 0:00:02]} Kg7 {[%emt 0:00:02]} 43. Qg5+ {[%emt 0:00:09]} Kh7 {[%emt 0:00:02]} 44. Bf4 {[%emt 0:00:08]} Re6 {[%emt 0:00:05]} 45. Qf5+ {[%emt 0:00:10]} Kg8 {[%emt 0:00:03]} 46. Kh2 {[%emt 0:00:20]} Rg6 {[%emt 0:00:10]} 47. g4 {[%emt 0:00:10]} Qb2+ {[%emt 0:00:01]} 48. Kg3 {[%emt 0:00:02]} Qf6 {[%emt 0:00:13]} 49. Qc8+ {[%emt 0:00:07]} Kh7 {[%emt 0:00:02]} 50. Qxb7 {[%emt 0:00:06]} Qc3+ {[%emt 0:00:03]} 51. Kh4 {[%emt 0:00:06]} Qe1+ {[%emt 0:00:07]} 52. Bg3 {[%emt 0:00:01]} Qe6 {[%emt 0:00:08]} 53. Bf4 {[%emt 0:00:15]} Qe1+ {[%emt 0:00:05]} 54. Kh5 {[%emt 0:00:02]} Qe6 {[%emt 0:00:12]} 55. g5 {[%emt 0:00:26]} Qf5 {[%emt 0:00:03]} 56. Qc7 {[%emt 0:00:01]} Rh6# {[%emt 0:00:07]} 0-1